[Event "FIDE WSTC Open 65 2025"]
[Site "Prague"]
[Date "2025.02.17"]
[Round "1.47"]
[White "Hardicsay, Peter"]
[Black "Olsson, Torgny"]
[Result "1/2-1/2"]
[Annotator "ChessBase"]
[ECO "E86"]
[WhiteElo "2164"]
[BlackElo "1902"]
[PlyCount "141"]
[EventDate "2025.02.17"]
[EventType "team-tourn"]
[EventCountry "CZE"]
[SourceTitle "playchess.com"]
[Source "ChessBase"]
[SourceQuality "1"]
[TimeControl "40/5400+30:1800+30"]

1. e4 {[%emt 0:00:05]} c6 {[%emt 0:00:20]} 2. c4 {[%emt 0:00:51]} d6 {[%emt 0:01:36]} 3. d4 {[%emt 0:00:33]} g6 {[%emt 0:01:02]} 4. Nc3 {[%emt 0:01:38]} Bg7 {[%emt 0:00:41]} 5. Be3 {[%emt 0:00:24]} Nf6 {[%emt 0:02:55]} 6. f3 {[%emt 0:01:49]} O-O {[%emt 0:01:02]} 7. Qd2 {[%emt 0:00:50]} e5 {[%emt 0:03:47]} 8. Nge2 {[%emt 0:01:47]} Nbd7 {[%emt 0:06:42]} 9. O-O-O {[%emt 0:02:15]} Qe7 {[%emt 0:02:55]} 10. Ng3 {[%emt 0:12:39]} exd4 {[%emt 0:14:37]} 11. Bxd4 {[%emt 0:00:27]} Ne5 {[%emt 0:01:24]} 12. Be3 {[%emt 0:22:25]} Be6 {[%emt 0:05:29]} 13. Qxd6 {[%emt 0:01:54]} Qxd6 {[%emt 0:00:39]} 14. Rxd6 {[%emt 0:00:09]} Nxc4 {[%emt 0:15:28]} 15. Bxc4 {[%emt 0:03:02]} Bxc4 {[%emt 0:00:40]} 16. Rhd1 {[%emt 0:02:36]} Be6 {[%emt 0:03:04]} 17. Kb1 {[%emt 0:01:56]} Ne8 {[%emt 0:06:10]} 18. Rd8 {[%emt 0:06:06]} Nf6 {[%emt 0:02:02]} 19. R8d6 {[%emt 0:09:22]} Ne8 {[%emt 0:01:11]} 20. R6d2 {[%emt 0:01:01]} b6 {[%emt 0:01:56]} 21. Bg5 {[%emt 0:04:07]} Nf6 {[%emt 0:03:38]} 22. Nge2 {[%emt 0:02:45]} h6 {[%emt 0:01:12]} 23. Be3 {[%emt 0:00:59]} Ne8 {[%emt 0:04:46]} 24. Nd4 {[%emt 0:02:10]} Bd7 {[%emt 0:00:49]} 25. Bf4 {[%emt 0:06:47]} Nf6 {[%emt 0:01:45]} 26. Bd6 {[%emt 0:00:54]} Rfe8 {[%emt 0:00:36]} 27. Nde2 {[%emt 0:01:53]} Be6 {[%emt 0:02:00]} 28. Nd4 {[%emt 0:01:54]} Bd7 {[%emt 0:00:29]} 29. g4 {[%emt 0:01:43]} Rac8 {[%emt 0:02:41]} 30. h4 {[%emt 0:02:53]} a6 {[%emt 0:00:56]} 31. Nde2 {[%emt 0:00:47]} Be6 {[%emt 0:02:55]} 32. Nf4 {[%emt 0:01:02]} Nd7 {[%emt 0:03:22]} 33. h5 {[%emt 0:02:13]} g5 {[%emt 0:00:59]} 34. Nxe6 {[%emt 0:01:01]} Rxe6 {[%emt 0:00:37]} 35. Kc2 {[%emt 0:00:53]} Be5 {[%emt 0:02:42]} 36. Ba3 {[%emt 0:00:50]} Nf6 {[%emt 0:00:15]} 37. Rd8+ {[%emt 0:00:32]} Re8 {[%emt 0:00:40]} 38. Rxc8 {[%emt 0:01:37]} Rxc8 {[%emt 0:00:09]} 39. Be7 {[%emt 0:00:47]} Kg7 {[%emt 0:01:42]} 40. Ne2 {[%emt 0:01:08]} Re8 {[%emt 0:01:00]} 41. Bd6 {[%emt 0:31:04]} Nd7 {[%emt 0:04:38]} 42. Bb4 {[%emt 0:00:00]} Nf6 {[%emt 0:05:47]} 43. Be1 {[%emt 0:00:00]} Bc7 {[%emt 0:10:22]} 44. Nd4 {[%emt 0:00:00]} c5 {[%emt 0:01:59]} 45. Nf5+ {[%emt 0:00:00]} Kh7 {[%emt 0:00:46]} 46. Bc3 {[%emt 0:00:00]} Be5 {[%emt 0:02:35]} 47. a4 {[%emt 0:00:00]} Bxc3 {[%emt 0:03:29]} 48. Kxc3 {[%emt 0:00:00]} Re6 {[%emt 0:04:24]} 49. Kc4 {[%emt 0:00:00]} Rc6 {[%emt 0:01:33]} 50. Rd8 {[%emt 0:00:00]} Rc7 {[%emt 0:00:38]} 51. Rd6 {[%emt 0:00:00]} Nd7 {[%emt 0:01:01]} 52. Rxh6+ {[%emt 0:00:00]} Kg8 {[%emt 0:00:12]} 53. Rd6 {[%emt 0:00:00]} Ne5+ {[%emt 0:01:50]} 54. Kd5 {[%emt 0:01:21]} Nxf3 {[%emt 0:00:15]} 55. Rxb6 {[%emt 0:00:32]} c4 {[%emt 0:00:33]} 56. Rxa6 {[%emt 0:02:45]} c3 {[%emt 0:00:27]} 57. bxc3 {[%emt 0:00:10]} Rxc3 {[%emt 0:00:08]} 58. Ra8+ {[%emt 0:01:15]} Kh7 {[%emt 0:00:10]} 59. Rf8 {[%emt 0:00:47]} Rd3+ {[%emt 0:00:04]} 60. Kc5 {[%emt 0:00:25]} Ne5 {[%emt 0:00:22]} 61. Kb4 {[%emt 0:01:16]} Nc6+ {[%emt 0:00:36]} 62. Kb5 {[%emt 0:00:38]} Ne5 {[%emt 0:00:11]} 63. Re8 {[%emt 0:00:41]} Nxg4 {[%emt 0:01:04]} 64. a5 {[%emt 0:00:24]} Nf6 {[%emt 0:00:24]} 65. Re7 {[%emt 0:00:30]} Nxh5 {[%emt 0:00:27]} 66. Rxf7+ {[%emt 0:00:27]} Kg6 {[%emt 0:00:29]} 67. Rf8 {[%emt 0:00:50]} Nf6 {[%emt 0:00:24]} 68. a6 {[%emt 0:00:16]} Nxe4 {[%emt 0:00:32]} 69. a7 {[%emt 0:00:27]} Ra3 {[%emt 0:00:26]} 70. Ne7+ {[%emt 0:00:18]} Kh5 {[%emt 0:02:00]} 71. a8=Q {[%emt 0:00:15]} 1/2-1/2

[Event "FIDE WSTC Open 65 2025"]
[Site "Prague"]
[Date "2025.02.17"]
[Round "1.48"]
[White "Andersson, Erik"]
[Black "Dory, Jeno"]
[Result "0-1"]
[Annotator "ChessBase"]
[ECO "A05"]
[WhiteElo "1858"]
[BlackElo "2143"]
[PlyCount "98"]
[EventDate "2025.02.17"]
[EventType "team-tourn"]
[EventCountry "CZE"]
[SourceTitle "playchess.com"]
[Source "ChessBase"]
[SourceQuality "1"]
[TimeControl "40/5400+30:1800+30"]

1. Nf3 {[%emt 0:00:03]} c5 {[%emt 0:00:15]} 2. b3 {[%emt 0:00:05]} Nf6 {[%emt 0:02:21]} 3. Bb2 {[%emt 0:00:10]} e6 {[%emt 0:00:16]} 4. e3 {[%emt 0:00:35]} Be7 {[%emt 0:00:38]} 5. h3 {[%emt 0:01:49]} b6 {[%emt 0:02:21]} 6. Be2 {[%emt 0:00:18]} Bb7 {[%emt 0:00:30]} 7. O-O {[%emt 0:00:21]} O-O {[%emt 0:01:00]} 8. d4 {[%emt 0:03:34]} cxd4 {[%emt 0:05:22]} 9. Nxd4 {[%emt 0:03:26]} d5 {[%emt 0:04:10]} 10. Nd2 {[%emt 0:02:03]} Nbd7 {[%emt 0:05:47]} 11. c4 {[%emt 0:04:00]} Nc5 {[%emt 0:06:59]} 12. b4 {[%emt 0:09:04]} Nce4 {[%emt 0:03:15]} 13. a3 {[%emt 0:05:33]} Rc8 {[%emt 0:03:28]} 14. cxd5 {[%emt 0:06:51]} Qxd5 {[%emt 0:11:09]} 15. N2f3 {[%emt 0:08:11]} a6 {[%emt 0:05:07]} 16. Rc1 {[%emt 0:05:36]} Qa2 {[%emt 0:09:53]} 17. Qb3 {[%emt 0:04:25]} Qxb3 {[%emt 0:01:54]} 18. Nxb3 {[%emt 0:02:09]} Nd5 {[%emt 0:01:13]} 19. Bd3 {[%emt 0:07:10]} Ndc3 {[%emt 0:05:56]} 20. Bxe4 {[%emt 0:07:23]} Nxe4 {[%emt 0:00:16]} 21. Nbd2 {[%emt 0:00:56]} Nd6 {[%emt 0:05:32]} 22. Nd4 {[%emt 0:08:23]} e5 {[%emt 0:01:23]} 23. N4b3 {[%emt 0:01:29]} f6 {[%emt 0:00:16]} 24. f3 {[%emt 0:00:14]} Kf7 {[%emt 0:00:34]} 25. Kf2 {[%emt 0:00:23]} Rfd8 {[%emt 0:02:12]} 26. Rxc8 {[%emt 0:00:24]} Rxc8 {[%emt 0:00:18]} 27. Rc1 {[%emt 0:00:51]} Rxc1 {[%emt 0:01:00]} 28. Bxc1 {[%emt 0:00:03]} Bd5 {[%emt 0:02:37]} 29. e4 {[%emt 0:02:26]} Be6 {[%emt 0:01:06]} 30. Na1 {[%emt 0:02:59]} Ke8 {[%emt 0:01:40]} 31. Nc2 {[%emt 0:00:10]} Kd7 {[%emt 0:00:13]} 32. Ke3 {[%emt 0:01:23]} Nc4+ {[%emt 0:01:46]} 33. Kd3 {[%emt 0:01:03]} Nxd2 {[%emt 0:01:55]} 34. Kxd2 {[%emt 0:00:01]} g6 {[%emt 0:02:08]} 35. g4 {[%emt 0:02:39]} Kc6 {[%emt 0:01:14]} 36. Ne3 {[%emt 0:03:12]} Kb5 {[%emt 0:03:12]} 37. Kc3 {[%emt 0:01:25]} a5 {[%emt 0:02:53]} 38. bxa5 {[%emt 0:04:09]} bxa5 {[%emt 0:01:08]} 39. Bb2 {[%emt 0:01:38]} Bc5 {[%emt 0:02:10]} 40. Bc1 {[%emt 0:01:29]} Bd4+ {[%emt 0:04:03]} 41. Kd3 {[%emt 0:31:10]} a4 {[%emt 0:07:55]} 42. Bd2 {[%emt 0:00:00]} Bc5 {[%emt 0:00:19]} 43. Bc1 {[%emt 0:00:00]} Kc6 {[%emt 0:01:58]} 44. Kc3 {[%emt 0:00:00]} Bc8 {[%emt 0:05:58]} 45. g5 {[%emt 0:00:00]} fxg5 {[%emt 0:03:44]} 46. Nc4 {[%emt 0:00:00]} Bd4+ {[%emt 0:01:08]} 47. Kd3 {[%emt 0:00:00]} h6 {[%emt 0:01:09]} 48. Bd2 {[%emt 0:00:00]} Bxh3 {[%emt 0:01:20]} 49. Bb4 {[%emt 0:00:00]} Bf1+ {[%emt 0:00:44]} 0-1

[Event "FIDE WSTC Open 65 2025"]
[Site "Prague"]
[Date "2025.02.18"]
[Round "2.1"]
[White "Glienke, Manfred"]
[Black "Nunn, John D M"]
[Result "1/2-1/2"]
[Annotator "ChessBase"]
[ECO "E62"]
[WhiteElo "2187"]
[BlackElo "2533"]
[PlyCount "49"]
[EventDate "2025.02.17"]
[EventType "team-tourn"]
[EventCountry "CZE"]
[SourceTitle "playchess.com"]
[Source "ChessBase"]
[SourceQuality "1"]
[TimeControl "40/5400+30:1800+30"]

1. d4 {[%emt 0:00:03]} Nf6 {[%emt 0:00:09]} 2. Nf3 {[%emt 0:00:07]} g6 {[%emt 0:00:07]} 3. c4 {[%emt 0:00:11]} Bg7 {[%emt 0:00:08]} 4. g3 {[%emt 0:00:06]} O-O {[%emt 0:00:09]} 5. Bg2 {[%emt 0:00:06]} d6 {[%emt 0:00:53]} 6. O-O {[%emt 0:00:08]} Nc6 {[%emt 0:00:04]} 7. Nc3 {[%emt 0:00:20]} Rb8 {[%emt 0:00:26]} 8. Bf4 {[%emt 0:00:17]} a6 {[%emt 0:00:31]} 9. Rc1 {[%emt 0:05:13]} Bd7 {[%emt 0:08:31]} 10. b3 {[%emt 0:08:04]} b5 {[%emt 0:04:34]} 11. cxb5 {[%emt 0:02:40]} axb5 {[%emt 0:00:36]} 12. d5 {[%emt 0:00:51]} Na7 {[%emt 0:06:04]} 13. Be3 {[%emt 0:05:25]} c5 {[%emt 0:03:43]} 14. dxc6 {[%emt 0:01:26]} Nxc6 {[%emt 0:00:14]} 15. Nd4 {[%emt 0:03:12]} Nxd4 {[%emt 0:06:46]} 16. Bxd4 {[%emt 0:00:15]} Qa5 {[%emt 0:02:45]} 17. Bxf6 {[%emt 0:05:50]} Bxf6 {[%emt 0:00:47]} 18. Nd5 {[%emt 0:00:08]} Qxa2 {[%emt 0:07:15]} 19. Nxf6+ {[%emt 0:00:32]} exf6 {[%emt 0:00:06]} 20. Qxd6 {[%emt 0:02:48]} Be6 {[%emt 0:00:21]} 21. b4 {[%emt 0:03:53]} Qxe2 {[%emt 0:01:48]} 22. Rfe1 {[%emt 0:00:44]} Qb2 {[%emt 0:07:06]} 23. Rb1 {[%emt 0:01:57]} Qc2 {[%emt 0:02:59]} 24. Rbc1 {[%emt 0:00:19]} Qb2 {[%emt 0:02:14]} 25. Rb1 {[%emt 0:00:33]} 1/2-1/2

[Event "FIDE WSTC Open 65 2025"]
[Site "Prague"]
[Date "2025.02.18"]
[Round "2.2"]
[White "Flear, Glenn C"]
[Black "Weiss, Christian"]
[Result "1-0"]
[Annotator "ChessBase"]
[ECO "D47"]
[WhiteElo "2384"]
[BlackElo "2371"]
[PlyCount "101"]
[EventDate "2025.02.17"]
[EventType "team-tourn"]
[EventCountry "CZE"]
[SourceTitle "playchess.com"]
[Source "ChessBase"]
[SourceQuality "1"]
[TimeControl "40/5400+30:1800+30"]

1. d4 {[%emt 0:00:04]} d5 {[%emt 0:00:12]} 2. c4 {[%emt 0:00:08]} e6 {[%emt 0:00:17]} 3. Nc3 {[%emt 0:00:11]} c6 {[%emt 0:00:19]} 4. e3 {[%emt 0:01:59]} Nd7 {[%emt 0:01:33]} 5. Bd3 {[%emt 0:01:54]} dxc4 {[%emt 0:01:22]} 6. Bxc4 {[%emt 0:00:10]} b5 {[%emt 0:00:12]} 7. Be2 {[%emt 0:07:01]} Ngf6 {[%emt 0:07:43]} 8. Nf3 {[%emt 0:01:57]} b4 {[%emt 0:00:33]} 9. Na4 {[%emt 0:00:37]} Bb7 {[%emt 0:01:45]} 10. O-O {[%emt 0:00:23]} Be7 {[%emt 0:00:48]} 11. a3 {[%emt 0:01:20]} a5 {[%emt 0:01:24]} 12. Qc2 {[%emt 0:03:06]} O-O {[%emt 0:01:42]} 13. axb4 {[%emt 0:00:26]} axb4 {[%emt 0:00:12]} 14. Bd2 {[%emt 0:00:48]} Ra5 {[%emt 0:07:12]} 15. Rfc1 {[%emt 0:12:24]} Qa8 {[%emt 0:16:46]} 16. Qd1 {[%emt 0:04:19]} Rd8 {[%emt 0:05:14]} 17. b3 {[%emt 0:01:29]} Ne4 {[%emt 0:01:54]} 18. Qe1 {[%emt 0:07:03]} Nxd2 {[%emt 0:14:56]} 19. Nxd2 {[%emt 0:01:44]} c5 {[%emt 0:00:25]} 20. Nc4 {[%emt 0:13:42]} Ra7 {[%emt 0:00:40]} 21. dxc5 {[%emt 0:02:13]} Bxg2 {[%emt 0:06:35]} 22. Nab6 {[%emt 0:01:09]} Qe4 {[%emt 0:01:06]} 23. Rxa7 {[%emt 0:01:36]} Qg6 {[%emt 0:14:25]} 24. Bh5 {[%emt 0:06:40]} Qg5 {[%emt 0:04:43]} 25. h4 {[%emt 0:04:08]} Qxh5 {[%emt 0:02:28]} 26. Kxg2 {[%emt 0:00:06]} Qg4+ {[%emt 0:00:28]} 27. Kf1 {[%emt 0:00:29]} Nxc5 {[%emt 0:01:59]} 28. Qe2 {[%emt 0:07:51]} Qh3+ {[%emt 0:01:10]} 29. Kg1 {[%emt 0:01:23]} Bxh4 {[%emt 0:01:23]} 30. Ra8 {[%emt 0:06:32]} Rxa8 {[%emt 0:00:44]} 31. Nxa8 {[%emt 0:00:06]} Ne4 {[%emt 0:00:40]} 32. Nd2 {[%emt 0:03:13]} Nc3 {[%emt 0:01:47]} 33. Qf1 {[%emt 0:02:12]} Qg4+ {[%emt 0:00:32]} 34. Kh2 {[%emt 0:02:11]} Be7 {[%emt 0:01:35]} 35. f4 {[%emt 0:04:35]} Bh4 {[%emt 0:02:31]} 36. Qf3 {[%emt 0:00:58]} Bg3+ {[%emt 0:00:39]} 37. Qxg3 {[%emt 0:00:55]} Qxg3+ {[%emt 0:00:00]} 38. Kxg3 {[%emt 0:00:07]} Ne2+ {[%emt 0:00:04]} 39. Kf3 {[%emt 0:00:19]} Nxc1 {[%emt 0:00:03]} 40. Nc7 {[%emt 0:00:19]} Kf8 {[%emt 0:00:59]} 41. Na6 {[%emt 0:30:27]} Na2 {[%emt 0:03:44]} 42. e4 {[%emt 0:00:00]} f6 {[%emt 0:06:29]} 43. Ke3 {[%emt 0:00:00]} Ke7 {[%emt 0:02:05]} 44. Kd4 {[%emt 0:00:00]} g5 {[%emt 0:01:16]} 45. fxg5 {[%emt 0:00:00]} fxg5 {[%emt 0:02:54]} 46. Kc4 {[%emt 0:00:00]} g4 {[%emt 0:05:21]} 47. Nxb4 {[%emt 0:00:00]} h5 {[%emt 0:02:28]} 48. Nxa2 {[%emt 0:00:00]} h4 {[%emt 0:00:06]} 49. Kd3 {[%emt 0:00:00]} g3 {[%emt 0:00:46]} 50. Ke2 {[%emt 0:00:00]} h3 {[%emt 0:00:30]} 51. Kf3 {[%emt 0:00:00]} 1-0

[Event "FIDE WSTC Open 65 2025"]
[Site "Prague"]
[Date "2025.02.18"]
[Round "2.3"]
[White "Sprotte, Norbert"]
[Black "Large, Peter G"]
[Result "0-1"]
[Annotator "ChessBase"]
[ECO "E12"]
[WhiteElo "2129"]
[BlackElo "2314"]
[PlyCount "76"]
[EventDate "2025.02.17"]
[EventType "team-tourn"]
[EventCountry "CZE"]
[SourceTitle "playchess.com"]
[Source "ChessBase"]
[SourceQuality "1"]
[TimeControl "40/5400+30:1800+30"]

1. d4 {[%emt 0:00:03]} Nf6 {[%emt 0:00:10]} 2. Nf3 {[%emt 0:00:19]} e6 {[%emt 0:00:26]} 3. c4 {[%emt 0:00:23]} b6 {[%emt 0:01:08]} 4. a3 {[%emt 0:00:55]} Ba6 {[%emt 0:02:42]} 5. Qc2 {[%emt 0:01:04]} Bb7 {[%emt 0:00:16]} 6. Nc3 {[%emt 0:01:02]} c5 {[%emt 0:00:07]} 7. Bf4 {[%emt 0:08:03]} cxd4 {[%emt 0:20:04]} 8. Nxd4 {[%emt 0:01:47]} Nh5 {[%emt 0:02:23]} 9. Bd2 {[%emt 0:07:31]} Nc6 {[%emt 0:02:43]} 10. Nxc6 {[%emt 0:07:00]} Bxc6 {[%emt 0:00:08]} 11. e4 {[%emt 0:02:54]} Qb8 {[%emt 0:10:31]} 12. Be2 {[%emt 0:11:01]} Nf6 {[%emt 0:07:19]} 13. Bg5 {[%emt 0:09:24]} Bd6 {[%emt 0:07:44]} 14. g3 {[%emt 0:05:02]} h5 {[%emt 0:03:05]} 15. Bxf6 {[%emt 0:05:20]} gxf6 {[%emt 0:00:10]} 16. Nb5 {[%emt 0:02:07]} Bc5 {[%emt 0:03:50]} 17. Qc3 {[%emt 0:05:15]} Be7 {[%emt 0:05:29]} 18. Bf3 {[%emt 0:00:58]} a6 {[%emt 0:01:32]} 19. Nd4 {[%emt 0:00:18]} Bb7 {[%emt 0:00:37]} 20. h4 {[%emt 0:02:37]} Qe5 {[%emt 0:00:58]} 21. Ne2 {[%emt 0:01:47]} Qxc3+ {[%emt 0:03:13]} 22. Nxc3 {[%emt 0:00:19]} Rc8 {[%emt 0:00:11]} 23. Be2 {[%emt 0:02:38]} f5 {[%emt 0:01:11]} 24. f3 {[%emt 0:01:07]} Rg8 {[%emt 0:03:55]} 25. exf5 {[%emt 0:01:02]} Rxg3 {[%emt 0:00:30]} 26. fxe6 {[%emt 0:10:35]} dxe6 {[%emt 0:00:23]} 27. Kf2 {[%emt 0:01:56]} Rg8 {[%emt 0:00:52]} 28. Ne4 {[%emt 0:00:39]} f5 {[%emt 0:10:53]} 29. Ng5 {[%emt 0:01:35]} Bc5+ {[%emt 0:00:25]} 30. Kf1 {[%emt 0:01:07]} Ke7 {[%emt 0:01:36]} 31. Rd1 {[%emt 0:00:40]} Rcd8 {[%emt 0:00:39]} 32. Rd3 {[%emt 0:00:59]} Rxd3 {[%emt 0:01:49]} 33. Bxd3 {[%emt 0:00:01]} Be3 {[%emt 0:00:42]} 34. Ke2 {[%emt 0:01:54]} Bxg5 {[%emt 0:01:46]} 35. Rg1 {[%emt 0:00:29]} Rd8 {[%emt 0:00:52]} 36. Rxg5 {[%emt 0:02:31]} Bxf3+ {[%emt 0:00:12]} 37. Ke3 {[%emt 0:00:52]} Bg4 {[%emt 0:00:45]} 38. c5 {[%emt 0:01:56]} f4+ {[%emt 0:04:17]} 0-1

[Event "FIDE WSTC Open 65 2025"]
[Site "Prague"]
[Date "2025.02.18"]
[Round "2.4"]
[White "Chapman, Terry P D"]
[Black "Lanzendoerfer, Johannes"]
[Result "1/2-1/2"]
[Annotator "ChessBase"]
[ECO "B36"]
[WhiteElo "2278"]
[BlackElo "2131"]
[PlyCount "47"]
[EventDate "2025.02.17"]
[EventType "team-tourn"]
[EventCountry "CZE"]
[SourceTitle "playchess.com"]
[Source "ChessBase"]
[SourceQuality "1"]
[TimeControl "40/5400+30:1800+30"]

1. d4 {[%emt 0:00:08]} Nf6 {[%emt 0:01:13]} 2. c4 {[%emt 0:00:09]} c5 {[%emt 0:02:44]} 3. Nf3 {[%emt 0:01:01]} cxd4 {[%emt 0:00:39]} 4. Nxd4 {[%emt 0:00:04]} Nc6 {[%emt 0:01:15]} 5. Nc3 {[%emt 0:00:29]} g6 {[%emt 0:01:22]} 6. e4 {[%emt 0:01:13]} Nxd4 {[%emt 0:01:11]} 7. Qxd4 {[%emt 0:00:16]} d6 {[%emt 0:00:34]} 8. Be2 {[%emt 0:04:08]} Bg7 {[%emt 0:00:45]} 9. Be3 {[%emt 0:00:48]} O-O {[%emt 0:00:59]} 10. Qd2 {[%emt 0:00:46]} Bd7 {[%emt 0:03:46]} 11. O-O {[%emt 0:03:53]} Bc6 {[%emt 0:00:39]} 12. f3 {[%emt 0:00:27]} a5 {[%emt 0:01:09]} 13. Rfd1 {[%emt 0:03:15]} a4 {[%emt 0:02:07]} 14. Rab1 {[%emt 0:06:04]} Qa5 {[%emt 0:14:48]} 15. Bd4 {[%emt 0:18:20]} Nd7 {[%emt 0:09:46]} 16. Bxg7 {[%emt 0:02:10]} Kxg7 {[%emt 0:01:36]} 17. Kh1 {[%emt 0:00:17]} Rfd8 {[%emt 0:17:42]} 18. b4 {[%emt 0:04:51]} axb3 {[%emt 0:00:11]} 19. axb3 {[%emt 0:00:08]} Qe5 {[%emt 0:01:49]} 20. f4 {[%emt 0:06:18]} Qf6 {[%emt 0:00:41]} 21. Qe3 {[%emt 0:04:46]} b6 {[%emt 0:09:43]} 22. Nd5 {[%emt 0:04:25]} Bxd5 {[%emt 0:00:34]} 23. exd5 {[%emt 0:00:57]} Ra3 {[%emt 0:02:13]} 24. Re1 {[%emt 0:07:01]} 1/2-1/2

[Event "FIDE WSTC Open 65 2025"]
[Site "Prague"]
[Date "2025.02.18"]
[Round "2.5"]
[White "Vaisser, Anatoly"]
[Black "Roos, Jean-Luc"]
[Result "0-1"]
[Annotator "ChessBase"]
[ECO "D35"]
[WhiteElo "2452"]
[BlackElo "2165"]
[PlyCount "140"]
[EventDate "2025.02.17"]
[EventType "team-tourn"]
[EventCountry "CZE"]
[SourceTitle "playchess.com"]
[Source "ChessBase"]
[SourceQuality "1"]
[TimeControl "40/5400+30:1800+30"]

1. d4 {[%emt 0:00:00]} d5 {[%emt 0:00:09]} 2. c4 {[%emt 0:00:11]} e6 {[%emt 0:00:06]} 3. Nc3 {[%emt 0:00:31]} Be7 {[%emt 0:00:10]} 4. cxd5 {[%emt 0:01:23]} exd5 {[%emt 0:00:08]} 5. Bf4 {[%emt 0:00:08]} c6 {[%emt 0:00:49]} 6. Qc2 {[%emt 0:02:05]} g6 {[%emt 0:00:42]} 7. e3 {[%emt 0:03:55]} Bf5 {[%emt 0:00:32]} 8. Bd3 {[%emt 0:01:26]} Bxd3 {[%emt 0:00:32]} 9. Qxd3 {[%emt 0:00:05]} Nf6 {[%emt 0:02:49]} 10. Nf3 {[%emt 0:01:26]} Nbd7 {[%emt 0:04:22]} 11. h3 {[%emt 0:07:29]} O-O {[%emt 0:08:32]} 12. O-O {[%emt 0:03:33]} Re8 {[%emt 0:07:30]} 13. Rab1 {[%emt 0:01:38]} a5 {[%emt 0:02:43]} 14. Rfc1 {[%emt 0:01:55]} Bf8 {[%emt 0:05:55]} 15. a3 {[%emt 0:03:56]} Ne4 {[%emt 0:02:56]} 16. Ne5 {[%emt 0:06:24]} Nxe5 {[%emt 0:02:45]} 17. Bxe5 {[%emt 0:00:19]} Bd6 {[%emt 0:06:56]} 18. Bxd6 {[%emt 0:09:47]} Nxd6 {[%emt 0:00:51]} 19. b3 {[%emt 0:04:16]} Qe7 {[%emt 0:03:41]} 20. Ne2 {[%emt 0:06:11]} Nb5 {[%emt 0:03:15]} 21. a4 {[%emt 0:00:54]} Nc7 {[%emt 0:01:45]} 22. Nf4 {[%emt 0:01:18]} Na6 {[%emt 0:04:33]} 23. Qd2 {[%emt 0:01:13]} Nb4 {[%emt 0:02:44]} 24. Nd3 {[%emt 0:03:28]} Nxd3 {[%emt 0:03:06]} 25. Qxd3 {[%emt 0:00:05]} Qd6 {[%emt 0:08:25]} 26. Rc5 {[%emt 0:02:15]} f5 {[%emt 0:01:11]} 27. g3 {[%emt 0:07:17]} Re7 {[%emt 0:05:48]} 28. Kg2 {[%emt 0:03:16]} Rc7 {[%emt 0:02:27]} 29. Qd2 {[%emt 0:06:12]} b6 {[%emt 0:04:16]} 30. Rc3 {[%emt 0:01:36]} Kg7 {[%emt 0:06:35]} 31. Rbc1 {[%emt 0:00:55]} h5 {[%emt 0:00:54]} 32. Qe2 {[%emt 0:02:43]} Qe6 {[%emt 0:01:35]} 33. Qf3 {[%emt 0:00:44]} Rac8 {[%emt 0:00:44]} 34. Qf4 {[%emt 0:00:38]} Qe4+ {[%emt 0:01:18]} 35. f3 {[%emt 0:00:40]} Qxf4 {[%emt 0:00:56]} 36. gxf4 {[%emt 0:00:22]} Kf6 {[%emt 0:01:23]} 37. h4 {[%emt 0:00:50]} Ke6 {[%emt 0:01:32]} 38. Kf2 {[%emt 0:00:39]} Kd6 {[%emt 0:01:07]} 39. Rg1 {[%emt 0:01:45]} Rg8 {[%emt 0:00:24]} 40. e4 {[%emt 0:02:30]} dxe4 {[%emt 0:03:24]} 41. fxe4 {[%emt 0:30:06]} fxe4 {[%emt 0:30:28]} 42. Rcg3 {[%emt 0:00:33]} c5 {[%emt 0:00:00]} 43. Ke3 {[%emt 0:00:00]} cxd4+ {[%emt 0:00:00]} 44. Kxd4 {[%emt 0:00:00]} Rd7 {[%emt 0:00:00]} 45. Rxg6+ {[%emt 0:00:00]} Kc7+ {[%emt 0:00:00]} 46. Ke5 {[%emt 0:00:00]} Rxg6 {[%emt 0:00:00]} 47. Rxg6 {[%emt 0:00:00]} e3 {[%emt 0:00:00]} 48. Rg1 {[%emt 0:00:00]} e2 {[%emt 0:00:00]} 49. Re1 {[%emt 0:01:34]} Re7+ {[%emt 0:00:00]} 50. Kd5 {[%emt 0:08:33]} Kd7 {[%emt 0:00:00]} 51. f5 {[%emt 0:00:29]} Ke8 {[%emt 0:00:00]} 52. Kc6 {[%emt 0:02:02]} Re3 {[%emt 0:00:00]} 53. Kxb6 {[%emt 0:03:11]} Rxb3+ {[%emt 0:00:00]} 54. Kxa5 {[%emt 0:00:07]} Rb2 {[%emt 0:00:00]} 55. Ka6 {[%emt 0:00:12]} Kf7 {[%emt 0:00:09]} 56. a5 {[%emt 0:00:25]} Kf6 {[%emt 0:00:06]} 57. Ka7 {[%emt 0:00:22]} Kxf5 {[%emt 0:00:17]} 58. a6 {[%emt 0:00:43]} Kf4 {[%emt 0:00:32]} 59. Ka8 {[%emt 0:00:13]} Kf3 {[%emt 0:02:45]} 60. a7 {[%emt 0:00:12]} Rd2 {[%emt 0:00:18]} 61. Kb7 {[%emt 0:01:05]} Rd7+ {[%emt 0:00:46]} 62. Kb6 {[%emt 0:00:52]} Rxa7 {[%emt 0:01:42]} 63. Kxa7 {[%emt 0:00:14]} Kf2 {[%emt 0:00:07]} 64. Ra1 {[%emt 0:00:26]} e1=Q {[%emt 0:00:09]} 65. Rxe1 {[%emt 0:00:12]} Kxe1 {[%emt 0:00:10]} 66. Kb6 {[%emt 0:00:10]} Kf2 {[%emt 0:00:06]} 67. Kc5 {[%emt 0:00:19]} Kg3 {[%emt 0:00:02]} 68. Kd4 {[%emt 0:00:03]} Kxh4 {[%emt 0:00:04]} 69. Ke3 {[%emt 0:00:35]} Kg3 {[%emt 0:00:07]} 70. Ke2 {[%emt 0:00:07]} Kg2 {[%emt 0:01:22]} 0-1

[Event "FIDE WSTC Open 65 2025"]
[Site "Prague"]
[Date "2025.02.18"]
[Round "2.6"]
[White "Boulard, Eric"]
[Black "Haik, Aldo"]
[Result "1/2-1/2"]
[Annotator "ChessBase"]
[ECO "E17"]
[WhiteElo "2162"]
[BlackElo "2377"]
[PlyCount "58"]
[EventDate "2025.02.17"]
[EventType "team-tourn"]
[EventCountry "CZE"]
[SourceTitle "playchess.com"]
[Source "ChessBase"]
[SourceQuality "1"]
[TimeControl "40/5400+30:1800+30"]

1. c4 {[%emt 0:00:06]} e6 {[%emt 0:00:30]} 2. Nf3 {[%emt 0:00:23]} b6 {[%emt 0:00:44]} 3. g3 {[%emt 0:00:25]} Bb7 {[%emt 0:00:11]} 4. Bg2 {[%emt 0:00:05]} Nf6 {[%emt 0:00:35]} 5. O-O {[%emt 0:00:47]} c5 {[%emt 0:03:49]} 6. b3 {[%emt 0:01:37]} Be7 {[%emt 0:00:33]} 7. Bb2 {[%emt 0:00:44]} O-O {[%emt 0:00:17]} 8. Nc3 {[%emt 0:07:42]} d5 {[%emt 0:05:49]} 9. cxd5 {[%emt 0:00:58]} Nxd5 {[%emt 0:01:14]} 10. d4 {[%emt 0:08:50]} Nd7 {[%emt 0:03:53]} 11. Rc1 {[%emt 0:13:36]} Rc8 {[%emt 0:04:30]} 12. Qd3 {[%emt 0:06:42]} cxd4 {[%emt 0:08:26]} 13. Nxd5 {[%emt 0:04:00]} Bxd5 {[%emt 0:00:18]} 14. Rxc8 {[%emt 0:14:31]} Qxc8 {[%emt 0:00:35]} 15. Rc1 {[%emt 0:00:13]} Qb7 {[%emt 0:12:43]} 16. Qxd4 {[%emt 0:00:48]} Bf6 {[%emt 0:00:13]} 17. Qd2 {[%emt 0:00:07]} Rc8 {[%emt 0:01:14]} 18. Rxc8+ {[%emt 0:03:12]} Qxc8 {[%emt 0:03:00]} 19. Ne1 {[%emt 0:00:42]} Bxb2 {[%emt 0:06:02]} 20. Qxb2 {[%emt 0:00:19]} Bxg2 {[%emt 0:06:29]} 21. Nxg2 {[%emt 0:00:48]} h6 {[%emt 0:00:08]} 22. Ne3 {[%emt 0:04:07]} Nf6 {[%emt 0:06:15]} 23. Qd4 {[%emt 0:05:48]} Qc1+ {[%emt 0:01:21]} 24. Kg2 {[%emt 0:04:48]} Qc6+ {[%emt 0:00:15]} 25. f3 {[%emt 0:00:33]} Qc1 {[%emt 0:02:36]} 26. Qd8+ {[%emt 0:03:25]} Kh7 {[%emt 0:00:43]} 27. Qd3+ {[%emt 0:00:07]} Kg8 {[%emt 0:00:10]} 28. Qd8+ {[%emt 0:00:08]} Kh7 {[%emt 0:00:03]} 29. Qd3+ {[%emt 0:00:09]} Kg8 {[%emt 0:00:05]} 1/2-1/2